bitfinex/quotes_SOLUSD_20250508
["timestamp","ask_amount","ask_price","bid_price","bid_amount"]
[1746743021902,6.20155038,161.25,161.2,38.21158318]
[1746743022103,6.20155038,161.25,161.2,26.0]
[1746743022302,6.20155038,161.25,161.22,12.21158318]
[1746743022497,21.70542634,161.25,161.22,12.21158318]
[1746743022987,21.70542634,161.25,161.23,12.21158318]
[1746743023683,21.70542634,161.25,161.24,12.21158318]
[1746743023877,21.70542634,161.25,161.23,12.21158318]
[1746743026806,21.70542634,161.25,161.18,1.5151]
[1746743026978,40.66542634,161.25,161.23,12.21158318]
[1746743027604,40.66542634,161.25,161.18,1.5151]
[1746743027983,40.66542634,161.25,161.23,12.21158318]
[1746743028198,40.66542634,161.25,161.18,27.5151]
[1746743028388,40.66542634,161.25,161.22,12.21158318]
[1746743028999,25.16155038,161.25,161.24,12.21158318]
[1746743029692,40.66542634,161.25,161.23,12.21158318]
[1746743029906,40.66542634,161.25,161.22,12.21158318]
[1746743030109,40.66542634,161.25,161.18,27.5151]
[1746743030296,40.66542634,161.25,161.21,12.21158318]
[1746743030610,52.87700952,161.25,161.2,12.21158318]
[1746743030779,12.21158318,161.24,161.15,6.5151]
[1746743031110,40.66542634,161.25,161.15,6.5151]
[1746743031111,21.70946531,161.22,161.18,12.21158318]
[1746743031289,21.70946531,161.22,161.15,6.5151]
[1746743031290,136.24430335,161.21,161.17,12.21158318]
[1746743032179,6.20347394,161.2,161.17,12.21158318]
[1746743032595,21.7121588,161.2,161.14,1.6085]
[1746743032903,33.92374198,161.2,161.16,12.21158318]
[1746743033081,18.96,161.19,161.17,12.21158318]
[1746743033402,18.96,161.19,161.18,12.21158318]
[1746743033603,18.96,161.19,161.17,12.21158318]
[1746743034184,6.2042437,161.18,161.17,12.21158318]
[1746743035802,25.16397547,161.19,161.17,12.21158318]
[1746743035991,25.16397547,161.19,161.18,12.21158318]
[1746743038813,25.16397547,161.19,161.14,1.6085]
[1746743039006,40.67362247,161.19,161.16,12.21158318]
[1746743039586,40.67362247,161.19,161.14,1.6085]
[1746743039786,52.88520565,161.19,161.15,12.21158318]
[1746743039987,40.67362247,161.19,161.15,12.21158318]
[1746743040900,40.67362247,161.19,161.11,6.3668]
[1746743040901,21.71620028,161.17,161.1,1.6101]
[1746743041109,12.21158318,161.15,161.1,1.6101]
[1746743041411,148.45588653,161.14,161.06,1.6239]
[1746743041600,148.45588653,161.14,161.09,12.21158318]
[1746743041601,18.96,161.13,161.09,12.21158318]
[1746743041787,18.96,161.13,161.1,12.21158318]
[1746743041993,18.96,161.13,161.06,1.6239]
[1746743042195,18.96,161.13,161.09,12.21158318]
[1746743042805,6.20655412,161.12,161.11,12.21158318]
[1746743043585,6.20655412,161.12,161.1,12.21158318]
[1746743044087,6.20655412,161.12,161.06,1.6239]
[1746743044288,6.20655412,161.12,161.1,12.21158318]
[1746743046603,6.20655412,161.12,161.09,12.21158318]
[1746743047106,6.20655412,161.12,161.1,12.21158318]
[1746743047808,25.16626865,161.13,161.11,12.21158318]
[1746743047990,25.16626865,161.13,161.12,12.21158318]
[1746743048789,25.16626865,161.13,161.09,12.21158318]
[1746743048989,40.68169097,161.13,161.09,12.21158318]
[1746743050212,40.68169097,161.13,161.1,12.21158318]
[1746743050513,25.16626865,161.13,161.1,12.21158318]
[1746743050701,6.20626865,161.13,161.12,12.21158318]
[1746743051303,6.20626865,161.13,161.06,27.6239]
[1746743051503,6.20626865,161.13,161.12,12.21158318]
[1746743052015,6.20626865,161.13,161.06,27.6239]
[1746743052212,6.20626865,161.13,161.12,12.21158318]
[1746743056628,6.20626865,161.13,161.08,26.0]
[1746743056911,6.20626865,161.13,161.12,12.21158318]
[1746743057321,6.20626865,161.13,161.11,12.21158318]
[1746743057619,6.20626865,161.13,161.08,26.0]
[1746743057821,6.20626865,161.13,161.11,12.21158318]
[1746743058007,6.20626865,161.13,161.08,26.0]
[1746743058207,6.20626865,161.13,161.11,12.21158318]
[1746743060494,6.20626865,161.13,161.12,12.21158318]
[1746743061705,6.20626865,161.13,161.11,12.21158318]
[1746743063015,6.20626865,161.13,161.12,12.21158318]
[1746743063318,1.5764,161.2,161.13,1.6573]
[1746743063319,136.24430335,161.18,161.13,1.6573]
[1746743063621,257.48310285,161.21,161.17,12.21158318]
[1746743063825,251.28,161.21,161.2,12.21158318]
[1746743064126,18.92,161.21,161.2,12.21158318]
[1746743064712,25.12308913,161.21,161.2,12.21158318]
[1746743065021,18.92,161.21,161.2,12.21158318]
[1746743065726,25.12308913,161.21,161.2,12.21158318]
[1746743066832,25.12308913,161.21,161.14,32.20566137]
[1746743067131,25.12308913,161.21,161.2,12.21158318]
[1746743068022,25.12308913,161.21,161.14,32.20566137]
[1746743068224,25.12308913,161.21,161.19,12.21158318]
[1746743068408,25.12308913,161.21,161.2,12.21158318]
[1746743071023,18.92,161.21,161.2,12.21158318]
[1746743071215,25.12308913,161.21,161.2,12.21158318]
[1746743071607,18.92,161.21,161.2,12.21158318]
[1746743072426,18.92,161.21,161.2,24.42316636]
[1746743072624,19.92,161.21,161.2,12.21158318]
[1746743076225,19.92,161.21,161.2,24.42316636]
[1746743076619,19.92,161.21,161.2,12.21158318]
[1746743077132,1.0,161.21,161.2,12.21158318]
[1746743077931,1.0,161.21,161.2,25.96306636]
[1746743078135,1.0,161.21,161.2,32.1665403]
[1746743078631,1.0,161.21,161.2,25.96306636]
[1746743079021,1.0,161.21,161.2,13.75148318]
[1746743079325,1.0,161.21,161.2,25.96306636]
[1746743080508,1.0,161.21,161.2,32.1665403]
[1746743080713,18.9,161.26,161.2,32.1665403]
[1746743081010,18.9,161.26,161.25,12.21158318]
[1746743083626,25.10116581,161.26,161.2,13.75148318]
[1746743083834,25.10116581,161.26,161.24,12.21158318]
[1746743084040,25.10116581,161.26,161.25,12.21158318]
[1746743084813,142.44445477,161.29,161.2,45.95470323]
[1746743085114,142.44445477,161.29,161.28,12.21158318]
[1746743087529,26.0,161.26,161.18,13.01000433]
[1746743087835,37.68,161.25,161.16,8.0102]
[1746743088138,37.68,161.25,161.18,12.21158318]
[1746743088310,12.21158318,161.23,161.18,12.21158318]
[1746743088515,12.21158318,161.24,161.19,12.21158318]
[1746743088717,37.68,161.25,161.19,12.21158318]
[1746743089046,12.21158318,161.24,161.19,12.21158318]
[1746743089244,37.68,161.25,161.22,12.21158318]
[1746743089720,37.68,161.25,161.16,1.6397]
[1746743089721,43.88164429,161.25,161.23,19.50609788]
[1746743089919,43.88164429,161.25,161.22,19.50609788]
[1746743091040,43.88164429,161.25,161.23,19.50609788]
[1746743092231,43.88164429,161.25,161.17,26.0]
[1746743092538,59.38552025,161.25,161.21,19.50609788]
[1746743092738,59.38552025,161.25,161.17,26.0]
[1746743092929,195.6298236,161.25,161.21,19.50609788]
[1746743093128,215.13592148,161.25,161.17,26.0]
[1746743093327,195.6298236,161.25,161.22,19.50609788]
[1746743094227,195.6298236,161.25,161.23,19.50609788]
[1746743094441,161.28594764,161.25,161.24,19.50609788]
[1746743097939,161.28594764,161.25,161.2,19.50609788]
[1746743098142,161.28594764,161.25,161.24,19.50609788]
[1746743099149,155.08430335,161.25,161.24,19.50609788]
[1746743099345,18.84,161.25,161.24,19.50609788]
[1746743100430,25.04155038,161.25,161.24,19.50609788]
[1746743100847,18.84,161.25,161.24,19.50609788]
[1746743101035,6.20112979,161.27,161.24,19.50609788]
[1746743101243,6.20039682,161.28,161.26,19.50609788]
[1746743101949,6.20039682,161.28,161.22,1.6225]
[1746743102350,6.20039682,161.28,161.26,19.50609788]
[1746743102854,6.20039682,161.28,161.22,1.6225]
[1746743103159,15.50099206,161.28,161.22,1.6225]
[1746743103321,35.00708994,161.28,161.23,19.50609788]
[1746743103864,35.00708994,161.28,161.24,19.50609788]
[1746743104041,15.50099206,161.28,161.25,19.50609788]
[1746743104539,15.50099206,161.28,161.2,45.50609788]
[1746743104866,15.50099206,161.28,161.25,19.50609788]
[1746743106435,151.74529541,161.28,161.2,45.50609788]
[1746743106640,19.50609788,161.27,161.2,26.0]
[1746743106942,171.25139329,161.28,161.23,19.50609788]
[1746743107476,177.45179011,161.28,161.23,19.50609788]
[1746743107835,177.45179011,161.28,161.18,1.6642]
[1746743107836,19.50609788,161.27,161.18,1.6642]
[1746743108040,155.75040123,161.26,161.22,19.50609788]
[1746743108352,136.24430335,161.25,161.22,19.50609788]
[1746743108738,136.24430335,161.25,161.21,19.50609788]
[1746743108934,155.75040123,161.25,161.21,19.50609788]
[1746743109150,136.24430335,161.25,161.21,19.50609788]
[1746743109345,136.24430335,161.25,161.18,1.6642]
[1746743109346,136.24430335,161.25,161.22,19.50609788]
[1746743109564,6.201935,161.24,161.22,19.50609788]
[1746743109763,6.201935,161.24,161.23,19.50609788]
[1746743110664,136.24430335,161.25,161.23,19.50609788]
[1746743110858,53.62417951,161.36,161.24,19.50609788]
[1746743110859,37.6,161.29,161.24,19.50609788]
[1746743111044,37.6,161.29,161.27,19.50609788]
[1746743111246,37.6,161.29,161.2,45.50609788]
[1746743111465,136.24430335,161.28,161.25,19.50609788]
[1746743111641,6.20078129,161.27,161.25,19.50609788]
[1746743112043,21.70273453,161.27,161.18,1.6642]
[1746743112265,155.75040123,161.26,161.21,19.50609788]
[1746743113871,6.20155038,161.25,161.21,19.50609788]
[1746743114166,6.20155038,161.25,161.22,19.50609788]
[1746743114670,6.20155038,161.25,161.24,19.50609788]
[1746743116881,136.24430335,161.26,161.24,19.50609788]
[1746743116882,142.44559976,161.26,161.24,19.50609788]
[1746743117050,142.44559976,161.26,161.25,19.50609788]
[1746743117250,136.24430335,161.26,161.25,19.50609788]
[1746743117446,37.6,161.29,161.25,19.50609788]
[1746743117447,6.2000124,161.29,161.25,19.50609788]
[1746743117655,6.2000124,161.29,161.21,32.1484]
[1746743117853,6.2000124,161.29,161.28,19.50609788]
[1746743123786,24.99968783,161.3,161.28,19.50609788]
[1746743123990,24.99968783,161.3,161.29,19.50609788]
[1746743124659,24.99962802,161.3,161.29,19.50609788]
[1746743124874,18.8,161.3,161.29,19.50609788]
[1746743125762,258.3,161.35,161.29,19.50609788]
[1746743125763,6.19861493,161.33,161.29,19.50609788]
[1746743126086,6.19861493,161.33,161.32,19.50609788]
[1746743126480,6.19820972,161.34,161.32,19.50609788]
[1746743126882,6.19820972,161.34,161.33,19.50609788]
[1746743130391,155.04430335,161.35,161.33,19.50609788]
[1746743130576,18.8,161.35,161.34,19.50609788]
[1746743133392,6.19732613,161.36,161.34,19.50609788]
[1746743133686,6.19732613,161.36,161.35,19.50609788]
[1746743134398,6.19693871,161.37,161.35,19.50609788]
[1746743134912,1.0,161.36,161.35,19.50609788]
[1746743135770,1.0,161.36,161.35,12.1716601]
[1746743136895,7.19732275,161.36,161.35,12.1716601]
[1746743140073,1.0,161.36,161.35,12.1716601]
[1746743141717,7.19732275,161.36,161.35,12.1716601]
[1746743142014,1.0,161.36,161.35,12.1716601]
[1746743144688,7.19732275,161.36,161.31,7.71449839]
[1746743145013,1.0,161.36,161.31,7.71449839]
[1746743145182,1.0,161.36,161.35,12.1716601]
[1746743145380,7.19732275,161.36,161.35,12.1716601]
[1746743145786,1.0,161.36,161.35,12.1716601]
[1746743147609,1.0,161.36,161.31,1.5154]
[1746743147610,7.19732275,161.36,161.31,1.5154]
[1746743147914,7.19732275,161.36,161.35,12.1716601]
[1746743148402,19.36898285,161.36,161.27,33.8892]
[1746743148587,12.1716601,161.34,161.29,12.1716601]
[1746743148784,154.96430335,161.35,161.29,12.1716601]
[1746743148989,12.1716601,161.34,161.27,1.585]
[1746743149202,24.91847517,161.33,161.29,12.1716601]
[1746743149515,12.1716601,161.32,161.28,12.1716601]
[1746743149706,148.41596345,161.31,161.26,12.1716601]
[1746743149928,12.1716601,161.3,161.26,12.1716601]
[1746743150103,148.41596345,161.31,161.26,12.1716601]
[1746743150303,148.41596345,161.31,161.27,12.1716601]
[1746743150500,136.24430335,161.3,161.26,12.1716601]
[1746743151196,6.2000124,161.29,161.23,6.62031658]
[1746743151398,6.2000124,161.29,161.26,12.1716601]
[1746743151910,6.2000124,161.29,161.27,12.1716601]
[1746743152519,6.2000124,161.29,161.28,12.1716601]
[1746743152694,6.2000124,161.29,161.27,12.1716601]
[1746743153591,6.2000124,161.29,161.28,12.1716601]
[1746743154005,6.2000124,161.29,161.23,6.62031658]
[1746743154220,6.2000124,161.29,161.26,12.1716601]
[1746743155913,6.2000124,161.29,161.27,12.1716601]
[1746743157520,6.2000124,161.29,161.26,12.1716601]
[1746743157716,148.41596345,161.28,161.19,7.7379]
[1746743157907,30.8916601,161.27,161.19,1.6072]
[1746743158114,148.41596345,161.26,161.21,12.1716601]
[1746743158805,12.1716601,161.24,161.15,7.866]
[1746743159114,136.24430335,161.25,161.18,12.1716601]
[1746743159115,30.8716601,161.23,161.18,12.1716601]
[1746743159706,6.20270437,161.22,161.18,19.51649798]
[1746743159962,6.20270437,161.22,161.19,19.51649798]
[1746743160521,6.20270437,161.22,161.2,19.51649798]
[1746743161027,6.20270437,161.22,161.19,19.51649798]
[1746743161602,6.20270437,161.22,161.2,19.51649798]
[1746743162421,24.90243735,161.23,161.17,6.20433194]
[1746743162632,24.90243735,161.23,161.22,19.51649798]
[1746743162809,24.90243735,161.23,161.16,6.20488903]
[1746743163008,24.90243735,161.23,161.22,19.51649798]
[1746743163704,18.7,161.23,161.22,19.51649798]
[1746743164429,24.90231966,161.23,161.22,19.51649798]
[1746743165117,18.7,161.23,161.22,19.51649798]
[1746743166025,6.20160571,161.25,161.22,19.51649798]
[1746743166213,6.20116581,161.26,161.24,19.51649798]
[1746743166425,6.20116581,161.26,161.2,19.51649798]
[1746743166426,6.20116581,161.26,161.25,19.51649798]
[1746743166732,6.20116581,161.26,161.2,19.51649798]
[1746743166936,6.20116581,161.26,161.25,19.51649798]
[1746743169341,24.92091078,161.27,161.25,19.51649798]
[1746743169523,24.92091078,161.27,161.26,19.51649798]
[1746743170806,18.72,161.27,161.26,19.51649798]
[1746743171135,136.24430335,161.31,161.26,19.51649798]
[1746743171337,136.24430335,161.31,161.3,19.51649798]
[1746743172111,6.19936568,161.31,161.3,19.51649798]
[1746743172537,6.19936568,161.31,161.24,6.20180208]
[1746743172735,257.13893434,161.32,161.3,19.51649798]
[1746743172915,257.13893434,161.32,161.31,19.51649798]
[1746743173325,24.93893434,161.32,161.31,19.51649798]
[1746743174634,40.43608286,161.32,161.23,24.85185282]
[1746743174829,40.43608286,161.32,161.3,19.51649798]
[1746743177338,40.43608286,161.32,161.22,39.93911407]
[1746743177541,40.43608286,161.32,161.29,19.51649798]
[1746743178221,24.93893434,161.32,161.23,18.64964886]
[1746743178428,24.93893434,161.32,161.3,19.51649798]
[1746743179040,24.93893434,161.32,161.29,19.51649798]
[1746743179241,24.93893434,161.32,161.28,19.51649798]
[1746743179457,40.43608286,161.32,161.28,19.51649798]
[1746743179619,40.43608286,161.32,161.29,19.51649798]
[1746743179938,40.43608286,161.32,161.22,13.93914462]
[1746743179939,59.95258084,161.32,161.28,19.51649798]
[1746743180137,59.95258084,161.32,161.27,19.51649798]
[1746743180437,59.95258084,161.32,161.28,19.51649798]
[1746743180926,136.24430335,161.31,161.28,19.51649798]
[1746743181130,6.19962802,161.3,161.28,19.51649798]
[1746743181437,21.69869807,161.3,161.22,7.7365]
[1746743181842,21.69869807,161.3,161.26,12.1856116]
[1746743182136,18.64,161.29,161.26,12.1856116]
[1746743182739,6.20039682,161.28,161.26,12.1856116]
[1746743183217,6.20039682,161.28,161.27,12.1856116]
[1746743184144,6.20039682,161.28,161.22,1.5759]
[1746743184319,6.20039682,161.28,161.26,12.1856116]
[1746743184649,6.20039682,161.28,161.22,1.5759]
[1746743184822,6.20039682,161.28,161.27,12.1856116]
[1746743187525,6.19962802,161.3,161.27,12.1856116]
[1746743187840,6.19962802,161.3,161.28,12.1856116]
[1746743188026,6.19962802,161.3,161.27,12.1856116]
[1746743188226,21.69869807,161.3,161.27,12.1856116]
[1746743188452,12.1856116,161.28,161.22,1.5759]
[1746743188631,148.42991495,161.29,161.24,12.1856116]
[1746743189127,21.70138888,161.28,161.24,12.1856116]
[1746743189336,21.70138888,161.28,161.22,1.5759]
[1746743189647,21.70138888,161.28,161.24,12.1856116]
[1746743191144,21.70138888,161.28,161.22,1.5759]
[1746743191337,21.70138888,161.28,161.18,12.22723368]
[1746743191338,12.1856116,161.26,161.18,6.0233]
[1746743191547,12.1856116,161.26,161.19,12.1856116]
[1746743191548,26.0,161.26,161.19,12.1856116]
[1746743191730,19.51323256,161.24,161.19,19.51323256]
[1746743192046,26.0,161.26,161.2,19.51323256]
[1746743192047,19.51323256,161.25,161.2,19.51323256]
[1746743192529,26.0,161.26,161.19,19.51323256]
[1746743192530,19.51323256,161.24,161.19,19.51323256]
[1746743192729,6.20231966,161.23,161.19,19.51323256]
[1746743192950,6.20231966,161.23,161.17,1.5526]
[1746743193157,21.70811882,161.23,161.19,19.51323256]
[1746743193451,21.70811882,161.23,161.2,19.51323256]
[1746743194749,21.70811882,161.23,161.17,1.5526]
[1746743194940,21.70811882,161.23,161.2,19.51323256]
[1746743195537,21.70811882,161.23,161.19,19.51323256]
[1746743195742,21.70811882,161.23,161.2,19.51323256]
[1746743197031,15.50579916,161.23,161.2,19.51323256]
[1746743197235,16.50579916,161.23,161.2,19.51323256]
[1746743197465,16.50579916,161.23,161.17,1.5526]
[1746743197732,16.50579916,161.23,161.19,19.51323256]
[1746743197934,16.50579916,161.23,161.2,19.51323256]
[1746743198859,152.75010251,161.23,161.2,19.51323256]
[1746743199040,158.95242217,161.23,161.2,19.51323256]
[1746743204439,158.95242217,161.23,161.17,1.5526]
[1746743204641,158.95242217,161.23,161.2,19.51323256]
[1746743205163,158.95242217,161.23,161.21,19.51323256]
[1746743205945,158.95242217,161.23,161.2,19.51323256]
[1746743206959,143.44662301,161.23,161.21,19.51323256]
[1746743207135,143.44662301,161.23,161.22,19.51323256]
[1746743209458,143.44662301,161.23,161.17,7.7571212]
[1746743209661,143.44662301,161.23,161.21,19.51323256]
[1746743210250,143.44662301,161.23,161.2,19.51323256]
[1746743211357,143.44662301,161.23,161.17,1.5526]
[1746743211558,143.44662301,161.23,161.2,19.51323256]
[1746743212067,178.46565473,161.23,161.19,19.51323256]
[1746743212248,19.51323256,161.21,161.17,19.51323256]
[1746743212956,174.33753591,161.22,161.18,19.51323256]
[1746743213258,6.20308913,161.21,161.18,19.51323256]
[1746743213650,6.20308913,161.21,161.17,19.51323256]
[1746743213860,6.20308913,161.21,161.17,12.19891552]
[1746743214164,136.24430335,161.22,161.2,12.19891552]
[1746743214366,136.24430335,161.22,161.21,12.19891552]
[1746743215872,1.0,161.23,161.21,12.19891552]
[1746743216158,1.0,161.23,161.22,12.19891552]
[1746743217067,7.20231966,161.23,161.22,12.19891552]
[1746743217857,7.20231966,161.23,161.2,1.6123]
[1746743218054,7.20231966,161.23,161.22,12.19891552]
[1746743221271,7.20231966,161.23,161.2,1.6123]
[1746743221472,7.20231966,161.23,161.22,12.19891552]
[1746743223073,7.20231966,161.23,161.2,1.6123]
[1746743223269,7.20231966,161.23,161.21,12.19891552]
[1746743223771,22.70811882,161.23,161.2,12.19891552]
[1746743223968,22.70811882,161.23,161.19,12.19891552]
[1746743224181,22.70811882,161.23,161.2,12.19891552]
[1746743224854,7.20231966,161.23,161.22,12.19891552]
[1746743228969,7.20231966,161.23,161.21,12.19891552]
[1746743229269,7.20231966,161.23,161.2,12.19891552]
[1746743230470,154.89395221,161.22,161.12,3.23569642]
[1746743230705,12.19891552,161.2,161.06,1.5936]
[1746743230860,12.19891552,161.13,161.08,12.19891552]
[1746743231380,12.19891552,161.13,161.11,26.0]
[1746743231760,6.20616893,161.13,161.11,26.0]
[1746743232686,6.20616893,161.13,161.1,12.19891552]
[1746743233292,6.20616893,161.13,161.11,12.19891552]
[1746743233588,6.20616893,161.13,161.12,12.19891552]
[1746743233763,6.20616893,161.13,161.08,26.0]
[1746743234080,6.20616893,161.13,161.11,19.53225442]
[1746743234283,170.25882833,161.14,161.06,7.80239799]
[1746743234284,160.95019937,161.14,161.12,19.53225442]
[1746743234465,142.45019937,161.14,161.13,19.53225442]
[1746743236285,136.24430335,161.14,161.13,19.53225442]
[1746743236488,142.45008714,161.14,161.13,19.53225442]
[1746743237288,136.24430335,161.14,161.13,19.53225442]
[1746743238383,142.45008714,161.14,161.13,19.53225442]
[1746743238960,136.24430335,161.14,161.13,19.53225442]
[1746743239161,142.45008714,161.14,161.08,6.2080346]
[1746743239392,142.45008714,161.14,161.13,19.53225442]
[1746743240068,142.45008714,161.14,161.09,26.0]
[1746743240367,142.45008714,161.14,161.11,19.53225442]
[1746743240790,142.45008714,161.14,161.12,19.53225442]
[1746743240977,136.24430335,161.14,161.13,19.53225442]
[1746743245188,142.45008714,161.14,161.13,19.53225442]
[1746743245382,142.45008714,161.14,161.12,19.53225442]
[1746743246089,136.24430335,161.14,161.09,32.20763429]
[1746743246264,136.24430335,161.14,161.13,19.53225442]
[1746743246671,142.45008714,161.14,161.13,19.53225442]
[1746743247181,136.24430335,161.14,161.13,19.53225442]
[1746743247388,142.45008714,161.14,161.13,19.53225442]
[1746743247889,142.45008714,161.14,161.12,19.53225442]
[1746743248993,142.45008714,161.14,161.13,19.53225442]
[1746743249196,142.45008714,161.14,161.12,19.53225442]
[1746743251290,142.45008714,161.14,161.13,19.53225442]
[1746743253772,142.45008714,161.14,161.13,12.20589929]
[1746743256482,142.45008714,161.14,161.09,26.0]
[1746743256682,142.45008714,161.14,161.11,12.20589929]
[1746743256898,142.45008714,161.14,161.1,12.20589929]
[1746743257482,157.96454661,161.14,161.11,12.20589929]
[1746743257992,142.45008714,161.14,161.12,12.20589929]
[1746743258394,136.24430335,161.14,161.13,12.20589929]
[1746743258604,173.18430335,161.14,161.13,12.20589929]
[1746743258783,179.39008714,161.14,161.13,12.20589929]
[1746743259208,142.45008714,161.14,161.13,12.20589929]
[1746743261097,142.45008714,161.14,161.06,1.5936]
[1746743261300,142.45008714,161.14,161.1,12.20589929]
[1746743262493,157.96454661,161.14,161.1,12.20589929]
[1746743262887,142.45008714,161.14,161.12,12.20589929]
[1746743263086,6.20578379,161.14,161.13,12.20589929]
[1746743263395,36.92,161.15,161.13,12.20589929]
[1746743263396,18.5,161.15,161.13,12.20589929]
[1746743263600,18.5,161.15,161.14,12.20589929]
[1746743267307,247.96953892,161.2,161.14,12.20589929]
[1746743267308,18.4,161.19,161.14,12.20589929]
[1746743267608,24.60410694,161.19,161.18,12.20589929]
[1746743268703,24.60410694,161.19,161.16,12.20589929]
[1746743268882,24.60410694,161.19,161.15,12.20589929]
[1746743269381,52.31965323,161.19,161.15,12.20589929]
[1746743269591,52.31965323,161.19,161.14,12.20589929]
[1746743269787,188.56395658,161.19,161.15,12.20589929]
[1746743270674,176.35805729,161.19,161.15,12.20589929]
[1746743271607,188.56395658,161.19,161.14,12.20589929]
[1746743272486,188.56395658,161.19,161.13,26.0]
[1746743272804,188.56395658,161.19,161.15,12.20589929]
[1746743273105,176.35805729,161.19,161.15,12.20589929]
[1746743274002,136.24430335,161.18,161.15,12.20589929]
[1746743275393,6.20462865,161.17,161.15,12.20589929]
[1746743275980,142.44870011,161.18,161.16,12.20589929]
[1746743276188,136.24430335,161.18,161.17,12.20589929]
[1746743277792,136.24430335,161.18,161.17,19.51176672]
[1746743279298,142.44854705,161.18,161.17,19.51176672]
[1746743279484,177.47092302,161.18,161.12,1.559]
[1746743279692,177.47092302,161.18,161.14,19.51176672]
[1746743280494,177.47092302,161.18,161.13,19.51176672]
[1746743280688,19.51176672,161.16,161.08,1.6582]
[1746743280889,136.24430335,161.17,161.08,1.6582]
[1746743280890,36.76,161.15,161.12,19.51176672]
[1746743281811,6.20578379,161.14,161.12,19.51176672]
[1746743282396,6.20578379,161.14,161.1,26.0]
[1746743282613,6.20578379,161.14,161.12,19.51176672]
[1746743286717,19.51176672,161.13,161.08,1.6582]
[1746743287119,19.51176672,161.12,161.08,19.51176672]
[1746743287420,19.51176672,161.12,161.07,19.51176672]
[1746743288007,25.71870607,161.11,161.07,19.51176672]
[1746743288208,6.20693935,161.11,161.07,19.51176672]
[1746743288402,6.20693935,161.11,161.08,19.51176672]
[1746743289496,136.24430335,161.14,161.04,47.08626672]
[1746743289497,18.32,161.12,161.1,19.51176672]
[1746743290010,18.32,161.12,161.11,19.51176672]
[1746743291202,24.52655412,161.12,161.11,19.51176672]
[1746743292122,154.56430335,161.14,161.11,19.51176672]
[1746743292318,160.77020983,161.14,161.13,19.51176672]
[1746743292616,160.77020983,161.14,161.11,19.51176672]
[1746743293620,6.20590648,161.14,161.11,19.51176672]
[1746743293823,6.20462865,161.17,161.13,19.51176672]
[1746743294134,18.32,161.16,161.15,19.51176672]
[1746743295201,18.32,161.16,161.14,19.51176672]
[1746743295517,6.20462865,161.17,161.14,19.51176672]
[1746743295715,19.51176672,161.15,161.11,26.0]
[1746743295915,6.20578379,161.14,161.11,26.0]
[1746743296105,6.20578379,161.14,161.12,19.51176672]
[1746743296308,24.50578379,161.14,161.12,19.51176672]
[1746743296918,24.50578379,161.14,161.13,19.51176672]
[1746743297117,24.50578379,161.14,161.12,19.51176672]
[1746743297628,24.50578379,161.14,161.11,26.0]
[1746743297813,24.50578379,161.14,161.08,26.0]
[1746743298116,24.50578379,161.14,161.11,19.51176672]
[1746743298302,24.50578379,161.14,161.08,26.0]
[1746743298503,24.50578379,161.14,161.06,1.6331]
[1746743298504,19.51176672,161.11,161.06,1.6331]
[1746743298805,19.51176672,161.11,161.07,19.51176672]
[1746743299013,19.51176672,161.12,161.07,19.51176672]
[1746743299332,18.3,161.11,161.08,19.51176672]
[1746743300525,6.20720147,161.11,161.09,19.51176672]
[1746743300833,151.75876282,161.14,161.1,19.51176672]
[1746743300834,18.28,161.12,161.1,19.51176672]
[1746743301020,6.20616893,161.13,161.11,19.51176672]
[1746743301332,160.73019952,161.14,161.12,19.51176672]
[1746743303226,160.73019952,161.14,161.08,26.0]
[1746743303430,160.73019952,161.14,161.12,19.51176672]
[1746743305526,160.73019952,161.14,161.08,26.0]
[1746743305703,160.73019952,161.14,161.12,19.51176672]
[1746743309135,142.45019952,161.14,161.12,19.51176672]
[1746743309315,160.71019952,161.14,161.13,19.51176672]
[1746743309917,24.46589617,161.14,161.12,19.51176672]
[1746743310640,24.46589617,161.14,161.13,19.51176672]
[1746743311435,6.20589617,161.14,161.13,19.51176672]
[1746743311808,6.20589617,161.14,161.13,12.20529171]
[1746743312438,6.20589617,161.14,161.12,12.20529171]
[1746743312833,36.56,161.15,161.12,12.20529171]
[1746743312834,18.26,161.15,161.12,12.20529171]
[1746743313139,18.26,161.15,161.11,12.20529171]
[1746743313943,18.26,161.15,161.12,12.20529171]
[1746743314939,6.20578379,161.14,161.12,12.20529171]
[1746743318321,6.20578379,161.14,161.11,12.20529171]
[1746743318823,148.44959506,161.13,161.08,12.20529171]
[1746743319031,21.72024326,161.14,161.05,1.5523]
[1746743319032,12.20529171,161.11,161.06,12.20529171]
[1746743319231,12.20529171,161.11,161.06,38.20529171]
[1746743319430,12.20529171,161.11,161.06,12.20529171]
[1746743319854,52.23092795,161.1,161.05,13.75759171]
[1746743320143,18.24,161.09,161.05,39.75759171]
[1746743320547,18.24,161.09,161.06,12.20529171]